bitfinex/quotes_SOLUSD_20241118
["timestamp","ask_amount","ask_price","bid_price","bid_amount"]
[1731893528494,32.24056216,238.93,238.82,10.468]
[1731893528833,16.07028108,238.86,238.82,10.468]
[1731893529115,16.07028108,238.84,238.76,10.4705]
[1731893529321,0.66533719,238.83,238.76,16.07028108]
[1731893529493,16.73561827,238.85,238.77,14.6584]
[1731893530116,16.07028108,238.83,238.77,14.6584]
[1731893530421,16.07028108,238.81,238.77,14.6584]
[1731893531094,16.07028108,238.83,238.77,14.6584]
[1731893531295,11.5618,238.86,238.77,14.6584]
[1731893531296,16.07028108,238.81,238.77,14.6584]
[1731893531616,16.07028108,238.79,238.77,10.4703]
[1731893531926,4.1869,238.84,238.77,10.4703]
[1731893531927,16.07028108,238.81,238.77,10.4703]
[1731893532297,16.07028108,238.79,238.71,10.4727]
[1731893532494,16.07028108,238.76,238.71,10.4727]
[1731893532689,0.66533719,238.75,238.71,14.6618]
[1731893532895,16.07028108,238.74,238.71,14.6618]
[1731893533106,0.66533719,238.73,238.69,4.6599112]
[1731893533306,0.66533719,238.73,238.69,0.4705112]
[1731893533821,16.07028108,238.72,238.69,0.4705112]
[1731893534121,16.07028108,238.8,238.69,0.4705112]
[1731893534122,16.07028108,238.7,238.69,0.4705112]
[1731893534427,16.07028108,238.72,238.69,0.4705112]
[1731893534601,0.66533719,238.71,238.69,0.4705112]
[1731893535019,16.07028108,238.78,238.7,16.07028108]
[1731893535230,28.3823,238.8,238.69,15.1337112]
[1731893535231,44.45258108,238.8,238.72,16.07028108]
[1731893535399,44.45258108,238.8,238.69,15.1337112]
[1731893535400,16.07028108,238.76,238.69,15.1337112]
[1731893535604,0.66533719,238.79,238.7,23.902374]
[1731893535605,16.07028108,238.78,238.7,23.902374]
[1731893535931,16.07028108,238.76,238.7,0.12549]
[1731893536124,16.07028108,238.76,238.7,23.902374]
[1731893536297,0.66533719,238.75,238.69,15.1337112]
[1731893536497,16.07028108,238.74,238.69,15.1337112]
[1731893536707,16.07028108,238.7,238.69,0.4705112]
[1731893536903,0.66533719,238.78,238.69,0.4705112]
[1731893537151,16.07028108,238.7,238.69,0.4705112]
[1731893537612,16.07028108,238.72,238.69,0.4705112]
[1731893537929,0.66533719,238.71,238.69,0.4705112]
[1731893538216,16.73561827,238.74,238.7,4.1893]
[1731893538524,16.07028108,238.78,238.71,23.902374]
[1731893538706,0.66533719,238.77,238.71,23.902374]
[1731893538908,28.3823,238.8,238.71,23.902374]
[1731893538909,0.66533719,238.79,238.71,39.97265508]
[1731893539103,44.45258108,238.8,238.71,39.97265508]
[1731893539307,16.07028108,238.8,238.73,0.12549]
[1731893539794,16.07028108,238.8,238.72,0.21916462]
[1731893539795,16.07028108,238.8,238.75,23.902374]
[1731893540303,44.1307,238.86,238.74,10.4716]
[1731893540304,16.07028108,238.78,238.74,10.4716]
[1731893540519,16.07028108,238.8,238.75,0.12549]
[1731893540723,16.73561827,238.84,238.76,0.09367462]
[1731893540910,16.07028108,238.88,238.8,23.99604862]
[1731893541307,16.07028108,238.88,238.8,23.902374]
[1731893541500,16.07028108,238.82,238.75,0.12549]
[1731893541712,16.07028108,238.82,238.75,23.902374]
[1731893541713,0.66533719,238.81,238.75,23.902374]
[1731893542000,16.07028108,238.8,238.75,14.78499]
[1731893542222,57.01368108,238.92,238.75,14.78499]
[1731893542223,16.07028108,238.82,238.76,23.776884]
[1731893542418,16.07028108,238.82,238.77,0.12549]
[1731893543501,16.07028108,238.88,238.8,23.99604862]
[1731893543698,16.73561827,238.91,238.82,16.07028108]
[1731893543941,16.73561827,238.91,238.84,0.12549]
[1731893544633,16.73561827,238.91,238.84,23.902374]
[1731893545930,16.07028108,238.93,238.86,23.902374]
[1731893547132,0.66533719,238.92,238.88,0.12549]
[1731893547432,0.66533719,238.91,238.87,4.1863]
[1731893547924,16.73561827,238.91,238.85,14.6535]
[1731893548346,16.07028108,238.89,238.85,14.6535]
[1731893549035,16.07028108,238.89,238.85,10.4668]
[1731893551041,16.07028108,238.91,238.85,10.4668]
[1731893551219,0.66533719,238.9,238.85,10.4668]
[1731893551416,16.07028108,238.91,238.86,0.12549]
[1731893551817,16.07028108,238.91,238.86,23.902374]
[1731893552217,16.07028108,238.91,238.86,0.12549]
[1731893552419,16.07028108,238.93,238.86,23.902374]
[1731893552942,20.91931827,239.03,238.93,23.902374]
[1731893553154,16.07028108,239.01,238.95,0.12549]
[1731893553341,16.07028108,238.99,238.9,16.07028108]
[1731893553535,0.66533719,238.98,238.91,23.902374]
[1731893554553,0.66533719,238.98,238.92,4.1855]
[1731893555529,16.07028108,238.96,238.88,4.1861]
[1731893555724,16.07028108,238.92,238.86,14.6526]
[1731893556434,16.07028108,238.92,238.86,10.4662]
[1731893556841,16.07028108,238.88,238.81,10.4684]
[1731893557088,16.07028108,238.86,238.81,10.4684]
[1731893557345,0.66533719,238.85,238.81,10.4684]
[1731893558151,16.07028108,238.86,238.81,10.4684]
[1731893558337,16.07028108,238.86,238.82,0.12549]
[1731893559351,16.07028108,238.84,238.76,10.4705]
[1731893559649,16.07028108,238.78,238.72,4.1889]
[1731893560055,16.07028108,238.78,238.72,10.4725]
[1731893560346,16.07028108,238.76,238.72,10.4725]
[1731893560546,0.66533719,238.75,238.72,10.4725]
[1731893560956,16.07028108,238.78,238.72,10.4725]
[1731893561544,16.07028108,238.78,238.73,0.12549]
[1731893562050,16.07028108,238.78,238.72,10.4725]
[1731893562051,0.66533719,238.77,238.72,10.4725]
[1731893563052,16.07028108,238.76,238.72,10.4725]
[1731893563234,0.66533719,238.75,238.72,10.4725]
[1731893563428,0.66533719,238.75,238.7,4.1893]
[1731893563634,0.66533719,238.75,238.69,0.4705112]
[1731893563635,16.07028108,238.74,238.69,0.4705112]
[1731893563927,16.07028108,238.74,238.69,4.6599112]
[1731893564138,16.07028108,238.76,238.69,4.6599112]
[1731893564338,0.66533719,238.75,238.69,4.6599112]
[1731893565043,0.66533719,238.75,238.69,4.1599112]
[1731893565354,16.07028108,238.72,238.67,10.4746]
[1731893565544,16.07028108,238.72,238.55,27.3735]
[1731893565545,16.07028108,238.68,238.58,16.07028108]
[1731893565940,16.07028108,238.68,238.62,16.070281]
[1731893566347,0.66533719,238.67,238.6,10.4775]
[1731893566542,16.07028108,238.66,238.6,10.4775]
[1731893566749,16.07028108,238.64,238.6,10.4775]
[1731893566947,0.66533719,238.63,238.55,14.6718]
[1731893567364,16.07028108,238.62,238.55,14.6718]
[1731893567533,16.07028108,238.6,238.55,14.6718]
[1731893567734,0.66533719,238.59,238.55,10.4799]
[1731893567930,16.07028108,238.63,238.55,10.4799]
[1731893568237,0.66533719,238.62,238.55,14.6718]
[1731893569253,0.66533719,238.62,238.56,0.12549]
[1731893569434,0.66533719,238.63,238.56,39.97265508]
[1731893569837,0.66533719,238.64,238.58,16.07028108]
[1731893570038,16.07028108,238.67,238.59,23.902374]
[1731893570366,0.66533719,238.66,238.6,16.1639557]
[1731893570530,0.1,238.79,238.65,23.902374]
[1731893570531,16.07028108,238.73,238.65,23.902374]
[1731893570735,16.07028108,238.75,238.67,23.902374]
[1731893570949,41.1226,238.77,238.67,23.902374]
[1731893570950,16.07028108,238.73,238.67,23.902374]
[1731893571367,16.07028108,238.73,238.68,4.1897]
[1731893571567,16.07028108,238.75,238.68,4.1897]
[1731893571733,0.66533719,238.74,238.68,14.6639]
[1731893571938,16.07028108,238.73,238.66,4.1899]
[1731893572256,16.07028108,238.71,238.63,16.07028108]
[1731893572446,0.66533719,238.7,238.63,16.07028108]
[1731893572945,16.07028108,238.69,238.62,10.4765]
[1731893573262,16.07028108,238.73,238.63,39.97265508]
[1731893573458,0.66533719,238.72,238.63,39.97265508]
[1731893574237,16.07028108,238.69,238.63,0.12549]
[1731893574464,16.07028108,238.71,238.63,23.902374]
[1731893574657,0.66533719,238.7,238.63,23.902374]
[1731893575041,0.66533719,238.7,238.63,39.97265508]
[1731893575246,0.66533719,238.73,238.65,39.97265508]
[1731893575460,16.07028108,238.75,238.65,39.97265508]
[1731893575750,0.66533719,238.74,238.67,16.07028108]
[1731893575956,11.5341,238.82,238.71,16.07028108]
[1731893576137,16.73561827,238.81,238.73,16.07028108]
[1731893577045,16.73561827,238.81,238.74,4.1886]
[1731893577469,16.73561827,238.81,238.74,14.6602]
[1731893577771,0.66533719,238.81,238.74,14.6602]
[1731893578061,16.73561827,238.87,238.8,0.12549]
[1731893578755,16.73561827,238.87,238.78,23.776884]
[1731893578756,16.73561827,238.87,238.79,0.12549]
[1731893579259,16.73561827,238.87,238.8,4.1876]
[1731893579468,16.07028108,238.85,238.8,4.1876]
[1731893580055,16.73561827,238.87,238.8,14.6566]
[1731893580252,16.07028108,238.89,238.81,23.902374]
[1731893580439,16.07028108,238.91,238.85,0.12549]
[1731893580637,16.73561827,238.93,238.84,16.07028108]
[1731893580867,16.73561827,238.93,238.55,54.38336703]
[1731893580868,16.07028108,238.86,238.74,10.4714]
[1731893581037,0.09367462,238.9,238.74,10.4714]
[1731893581038,16.07028108,238.81,238.74,10.4714]
[1731893581238,16.07028108,238.79,238.74,10.4714]
[1731893581441,0.66533719,238.78,238.74,10.4714]
[1731893582357,16.07028108,238.79,238.74,10.4714]
[1731893582563,0.66533719,238.78,238.74,10.4714]
[1731893582748,16.07028108,238.79,238.74,10.4714]
[1731893583256,16.07028108,238.79,238.75,0.12549]
[1731893583457,16.07028108,238.83,238.75,23.902374]
[1731893583661,27.60438108,238.81,238.72,4.189]
[1731893583850,27.60438108,238.81,238.73,23.902374]
[1731893583851,16.07028108,238.81,238.73,23.902374]
[1731893584048,0.66533719,238.8,238.73,23.902374]
[1731893584374,16.07028108,238.79,238.69,16.07028108]
[1731893584669,16.07028108,238.77,238.67,26.54488108]
[1731893584849,0.66533719,238.76,238.67,26.54488108]
[1731893585550,16.07028108,238.77,238.68,23.902374]
[1731893585743,0.66533719,238.76,238.68,23.902374]
[1731893586371,0.66533719,238.79,238.71,16.07028108]
[1731893586562,11.5341,238.86,238.74,0.12549]
[1731893586563,16.07028108,238.82,238.74,0.12549]
[1731893586751,16.73561827,238.84,238.76,23.902374]
[1731893586946,11.5341,238.86,238.76,23.902374]
[1731893586947,0.66533719,238.85,238.78,0.12549]
[1731893587276,16.07028108,238.88,238.8,0.12549]
[1731893587453,0.66533719,238.87,238.81,4.1874]
[1731893588053,0.66533719,238.87,238.81,14.6559]
[1731893588576,16.07028108,238.84,238.78,4.1878]
[1731893588778,0.66533719,238.83,238.78,4.1878]
[1731893589669,0.66533719,238.83,238.77,0.12549]
[1731893589876,16.07028108,238.82,238.77,0.12549]
[1731893590547,16.07028108,238.82,238.76,10.4706]
[1731893590548,0.66533719,238.81,238.76,10.4706]
[1731893590764,16.07028108,238.78,238.71,10.4728]
[1731893590949,16.07028108,238.76,238.72,4.1888]
[1731893591179,16.07028108,238.74,238.71,10.4728]
[1731893591862,0.21916462,238.67,238.51,4.1925]
[1731893592045,16.07028108,238.55,238.46,16.07028108]
[1731893592251,16.07028108,238.53,238.45,0.4705112]
[1731893592767,16.07028108,238.53,238.48,10.4827]
[1731893593761,16.07028108,238.53,238.45,4.6640112]
[1731893594152,16.07028108,238.53,238.45,15.1483112]
[1731893596379,16.07028108,238.53,238.46,4.31889]
[1731893597377,16.07028108,238.51,238.46,4.1934]
[1731893597568,16.07028108,238.49,238.45,10.9548112]
[1731893597769,16.07028108,238.47,238.45,0.4705112]
[1731893598173,0.66533719,238.46,238.45,0.4705112]
[1731893598381,16.07028108,238.49,238.45,4.6640112]
[1731893598681,16.07028108,238.49,238.45,0.4705112]
[1731893598990,16.07028108,238.49,238.45,4.6642112]
[1731893599695,16.07028108,238.49,238.45,0.4705112]
[1731893599981,4.85763719,238.54,238.45,0.4705112]
[1731893599982,16.07028108,238.47,238.45,0.4705112]
[1731893600168,0.66533719,238.46,238.45,0.4705112]
[1731893602131,0.66533719,238.46,238.32,10.4897]
[1731893602132,4.1937,238.45,238.32,10.4897]
[1731893602378,4.1937,238.45,238.27,20.9842]
[1731893602379,16.07028108,238.38,238.3,16.07028108]
[1731893602600,16.07028108,238.4,238.32,16.07028108]
[1731893602884,16.07028108,238.38,238.31,10.4905]
[1731893603067,16.07028108,238.36,238.31,10.4905]
[1731893604382,16.07028108,238.38,238.31,10.4905]
[1731893604563,16.07028108,238.4,238.32,16.07028108]
[1731893604758,0.66533719,238.39,238.32,16.07028108]
[1731893605181,16.07028108,238.4,238.32,16.07028108]
[1731893605384,0.66533719,238.42,238.34,16.07028108]
[1731893605385,16.73561827,238.42,238.34,16.07028108]
[1731893605574,0.66533719,238.44,238.38,16.07028108]
[1731893606193,0.66533719,238.44,238.39,4.1948]
[1731893606388,0.66533719,238.44,238.37,10.61329]
[1731893606389,16.07028108,238.42,238.37,10.4878]
[1731893606681,0.66533719,238.49,238.37,10.4878]
[1731893606887,0.66533719,238.49,238.43,0.12549]
[1731893607067,10.4772,238.62,238.46,16.07028108]
[1731893607068,16.07028108,238.53,238.46,16.07028108]
[1731893607270,0.66533719,238.52,238.46,16.07028108]
[1731893607464,16.07028108,238.51,238.4,0.09367462]
[1731893607687,16.07028108,238.51,238.43,0.12549]
[1731893607990,16.73561827,238.53,238.46,16.07028108]
[1731893608285,16.73561827,238.53,238.45,10.484]
[1731893608286,16.07028108,238.49,238.45,10.484]
[1731893608665,16.73561827,238.53,238.46,0.12549]
[1731893608867,0.66533719,238.52,238.46,0.12549]
[1731893609090,16.07028108,238.51,238.46,0.12549]
[1731893609269,11.3158,238.58,238.45,10.484]
[1731893609270,16.07028108,238.49,238.45,10.484]
[1731893609691,0.66533719,238.53,238.45,14.6777]
[1731893609989,16.07028108,238.52,238.45,14.6777]
[1731893610197,0.66533719,238.53,238.47,0.12549]
[1731893611394,0.66533719,238.53,238.47,4.31869]
[1731893613063,27.2239,238.59,238.47,4.31869]
[1731893613064,0.66533719,238.65,238.52,0.09367462]
[1731893613264,27.2239,238.68,238.61,0.12549]
[1731893613489,16.07028108,238.72,238.63,0.12549]
[1731893613692,0.66533719,238.72,238.65,0.12549]
[1731893614503,16.73561827,238.72,238.65,0.12549]
[1731893614867,0.66533719,238.71,238.65,0.12549]
[1731893615070,16.07028108,238.72,238.65,0.12549]
[1731893615372,0.66533719,238.71,238.66,4.19]
[1731893615672,0.66533719,238.71,238.65,0.12549]
[1731893615673,16.07028108,238.68,238.65,0.12549]
[1731893615895,16.07028108,238.66,238.59,0.12549]
[1731893616066,0.66533719,238.65,238.59,0.12549]
[1731893616271,0.66533719,238.65,238.58,10.4783]
[1731893616492,16.07028108,238.62,238.54,16.07028108]
[1731893616787,16.07028108,238.6,238.52,10.4809]
[1731893616989,16.17028108,238.68,238.52,10.4809]
[1731893616990,16.07028108,238.58,238.52,10.4809]
[1731893617171,16.07028108,238.6,238.52,10.4809]
[1731893617374,0.66533719,238.59,238.52,10.4809]
[1731893617791,27.38608108,238.64,238.52,10.4809]
[1731893618005,16.07028108,238.66,238.53,0.09367462]
[1731893618290,16.07028108,238.62,238.53,16.07028108]
[1731893618480,0.66533719,238.61,238.53,16.07028108]
[1731893618687,0.66533719,238.61,238.54,0.12549]
[1731893618996,16.07028108,238.64,238.56,0.12549]
[1731893619191,0.66533719,238.63,238.56,0.12549]
[1731893619389,0.66533719,238.63,238.56,4.31719]
[1731893620091,0.66533719,238.63,238.56,14.79669]
[1731893621108,16.07028108,238.6,238.54,4.1921]
[1731893621410,0.66533719,238.59,238.52,14.79929]
[1731893621576,16.07028108,238.63,238.53,16.07028108]
[1731893621779,16.07028108,238.61,238.53,16.07028108]
[1731893621980,0.66533719,238.6,238.54,0.12549]
[1731893622484,0.66533719,238.6,238.53,16.07028108]
[1731893622678,16.07028108,238.59,238.52,10.4813]
[1731893622871,16.07028108,238.56,238.52,10.4813]
[1731893623074,0.66533719,238.55,238.52,10.4813]
[1731893623275,16.07028108,238.54,238.47,4.1933]
[1731893623578,27.3239,238.62,238.49,16.07028108]
[1731893623579,16.07028108,238.58,238.49,16.07028108]
[1731893623882,0.66533719,238.57,238.49,16.07028108]
[1731893624082,16.07028108,238.54,238.47,14.6767]
[1731893624294,0.66533719,238.53,238.47,30.74698108]
[1731893624481,0.66533719,238.55,238.47,16.07028108]
[1731893624675,0.66533719,238.55,238.48,0.12549]
[1731893624878,0.66533719,238.55,238.47,16.07028108]
[1731893625281,0.66533719,238.55,238.41,14.6805]
[1731893625282,16.07028108,238.5,238.41,14.6805]
[1731893625497,0.66533719,238.49,238.41,30.75078108]
[1731893626879,16.07028108,238.48,238.41,14.6805]
[1731893627081,0.66533719,238.47,238.41,14.6805]
[1731893627290,16.07028108,238.5,238.41,30.75078108]
[1731893627483,0.66533719,238.49,238.41,30.75078108]
[1731893627693,16.07028108,238.48,238.41,10.4861]
[1731893628000,16.07028108,238.46,238.41,10.4861]
[1731893628206,16.07028108,238.44,238.37,4.1951]
[1731893628414,0.66533719,238.43,238.37,4.1951]
[1731893628723,16.07028108,238.42,238.35,14.6837]
[1731893629015,0.66533719,238.41,238.35,14.6837]
[1731893629221,0.66533719,238.41,238.35,10.4883]
[1731893629697,16.07028108,238.4,238.35,10.4883]
[1731893630017,0.66533719,238.39,238.35,10.4883]
[1731893630205,0.66533719,238.39,238.32,4.1959]
[1731893630410,16.07028108,238.36,238.29,10.491]
[1731893630593,0.66533719,238.39,238.31,16.07028108]
[1731893630793,28.03448108,238.41,238.31,16.07028108]
[1731893631124,0.66533719,238.4,238.31,0.09367462]
[1731893631414,0.66533719,238.4,238.32,16.07028108]
[1731893631623,16.07028108,238.39,238.3,14.6872]
[1731893631826,0.66533719,238.38,238.3,14.6872]
[1731893632508,16.07028108,238.37,238.3,10.4909]
[1731893632705,16.07028108,238.35,238.3,10.4909]
[1731893632906,0.66533719,238.34,238.3,10.4909]
[1731893633820,0.66533719,238.36,238.3,10.4909]
[1731893634328,16.07028108,238.35,238.3,10.4909]
[1731893634508,0.66533719,238.34,238.3,10.4909]
[1731893634710,0.66533719,238.34,238.28,4.1967]
[1731893635415,0.66533719,238.34,238.25,14.6901]
[1731893635416,16.07028108,238.31,238.25,14.6901]
[1731893635719,0.66533719,238.3,238.25,14.6901]
[1731893635897,0.66533719,238.3,238.25,10.493]
[1731893636300,16.07028108,238.31,238.25,10.493]
[1731893636620,0.66533719,238.3,238.25,10.493]
[1731893636822,0.66533719,238.3,238.25,16.07028108]
[1731893636999,45.08221827,238.4,238.29,16.07028108]
[1731893637198,45.08221827,238.4,238.31,16.07028108]
[1731893637697,16.07028108,238.38,238.29,16.07028108]
[1731893638014,16.07028108,238.36,238.29,16.07028108]
[1731893638211,0.66533719,238.35,238.27,16.07028108]
[1731893638797,0.66533719,238.35,238.27,20.26698108]
[1731893639100,0.66533719,238.37,238.29,16.07028108]
[1731893640432,0.66533719,238.37,238.3,14.6872]
[1731893640600,0.66533719,238.37,238.3,10.4909]
[1731893640798,0.66533719,238.37,238.3,14.6872]
[1731893642220,0.66533719,238.37,238.31,16.07028108]
[1731893642425,0.66533719,238.39,238.35,16.07028108]
[1731893642606,0.66533719,238.38,238.33,16.07028108]
[1731893642799,0.66533719,238.38,238.32,14.686]
[1731893643003,16.73561827,238.38,238.29,20.26668108]
[1731893643323,16.07028108,238.32,238.22,16.07028108]
[1731893643624,16.07028108,238.26,238.21,0.4705112]
[1731893643831,0.66533719,238.25,238.21,0.4705112]
[1731893644402,0.66533719,238.28,238.22,16.07028108]
[1731893644720,11.943,238.29,238.24,16.07028108]
[1731893645305,0.66533719,238.31,238.24,16.07028108]
[1731893646324,0.66533719,238.31,238.24,20.26748108]
[1731893646506,0.66533719,238.31,238.24,30.76108108]
[1731893646715,0.66533719,238.33,238.24,30.76108108]
[1731893646921,16.07028108,238.32,238.24,30.76108108]
[1731893647108,0.66533719,238.31,238.24,14.6908]
[1731893650232,16.73561827,238.31,238.24,14.6908]
[1731893650430,16.73561827,238.31,238.21,0.4705112]
[1731893650431,16.07028108,238.27,238.21,0.4705112]
[1731893650736,0.66533719,238.26,238.21,4.6683112]
[1731893651027,0.66533719,238.26,238.21,15.1632112]
[1731893651211,0.66533719,238.28,238.22,16.07028108]
[1731893651405,0.66533719,238.3,238.24,16.07028108]
[1731893651620,0.66533719,238.32,238.24,16.07028108]
[1731893652328,11.3842,238.39,238.3,16.07028108]
[1731893652635,0.66533719,238.38,238.32,16.07028108]
[1731893652836,0.66533719,238.38,238.26,35.6751]
[1731893652837,0.66533719,238.38,238.3,16.07028108]
[1731893653306,0.66533719,238.38,238.26,30.75998108]
[1731893653307,16.07028108,238.35,238.26,30.75998108]
[1731893653509,16.07028108,238.33,238.26,14.6897]
[1731893653711,16.07028108,238.31,238.26,14.6897]
[1731893653933,0.66533719,238.3,238.26,14.6897]
[1731893654104,0.66533719,238.3,238.26,10.4927]
[1731893655810,39.7674,238.26,238.21,10.9652112]
[1731893656023,39.7674,238.26,238.21,4.6684112]
[1731893656203,39.7674,238.26,238.21,15.1633112]
[1731893656529,0.66533719,238.25,238.21,15.1633112]
[1731893657150,39.7674,238.26,238.21,15.1633112]
[1731893657714,0.66533719,238.25,238.21,10.9654112]
[1731893657932,16.73561827,238.25,238.21,10.9654112]
[1731893658239,16.07028108,238.23,238.21,0.4705112]
[1731893658534,0.66533719,238.22,238.21,0.4705112]
[1731893658929,44.66138581,238.22,238.21,0.4705112]
[1731893659121,44.76138581,238.22,238.21,0.4705112]
[1731893659440,44.76138581,238.22,238.09,4.1999]
[1731893659441,20.0,238.2,238.09,4.1999]
[1731893659737,16.73561827,238.19,238.1,16.07028108]
[1731893659911,0.66533719,238.19,238.12,16.07028108]
[1731893660234,16.73561827,238.19,238.1,16.07028108]
[1731893661508,16.07028108,238.17,238.09,10.5002]
[1731893661739,0.66533719,238.16,238.09,10.5002]
[1731893662030,0.66533719,238.16,238.09,14.7002]
[1731893662843,0.66533719,238.31,238.15,24.027864]
[1731893663013,16.07028108,238.29,238.19,16.07028108]
[1731893663218,16.07028108,238.27,238.17,16.07028108]
[1731893663538,16.07028108,238.21,238.12,16.07028108]
[1731893663711,0.66533719,238.2,238.12,16.07028108]
[1731893664439,0.66533719,238.2,238.13,14.6977]
[1731893664836,27.6856,238.18,238.13,10.4984]
[1731893665130,0.66533719,238.17,238.11,16.07028108]
[1731893665535,0.66533719,238.17,238.1,4.1998]
[1731893666256,0.66533719,238.17,238.1,14.6995]
[1731893668064,27.6856,238.18,238.11,16.19577108]
[1731893668233,27.6856,238.18,238.12,14.6984]
[1731893668558,27.6856,238.24,238.17,16.07028108]
[1731893668727,0.66533719,238.23,238.17,16.07028108]
[1731893669352,28.35093719,238.24,238.17,16.07028108]
[1731893670450,0.1,238.32,238.12,35.6962]
[1731893670451,54.72288108,238.3,238.21,16.07028108]
[1731893670652,38.6526,238.3,238.23,16.07028108]
[1731893670868,43.75588108,238.36,238.27,16.07028108]
[1731893671152,27.6856,238.36,238.29,16.07028108]
[1731893671328,0.66533719,238.35,238.29,16.07028108]
[1731893672361,28.35093719,238.36,238.31,16.07028108]
[1731893672541,10.967,238.37,238.3,14.6872]
[1731893672742,10.967,238.37,238.31,16.19577108]
[1731893672942,10.967,238.37,238.33,16.07028108]
[1731893673329,0.66533719,238.41,238.33,16.07028108]
[1731893674280,16.07028108,238.38,238.29,16.07028108]
[1731893674504,16.07028108,238.34,238.25,16.07028108]
[1731893674772,4.195,238.38,238.23,30.76188108]
[1731893674773,16.07028108,238.32,238.23,30.76188108]
[1731893675059,4.195,238.38,238.23,14.6916]
[1731893675060,16.07028108,238.3,238.23,14.6916]
[1731893675363,0.66533719,238.29,238.23,14.6916]
[1731893675740,16.07028108,238.34,238.25,16.07028108]
[1731893675954,0.66533719,238.33,238.25,16.07028108]
[1731893676338,16.07028108,238.36,238.27,16.07028108]
[1731893676547,0.66533719,238.35,238.26,14.81519]
[1731893676751,16.07028108,238.34,238.26,14.6897]
[1731893676963,0.66533719,238.33,238.27,16.07028108]
[1731893677143,0.66533719,238.35,238.27,16.07028108]
[1731893678468,0.66533719,238.35,238.29,14.6879]
[1731893678665,0.66533719,238.35,238.29,30.75818108]
[1731893679138,0.66533719,238.37,238.29,30.75818108]
[1731893683050,16.07028108,238.36,238.29,14.6879]
[1731893683256,0.66533719,238.35,238.29,14.6879]
[1731893684561,16.07028108,238.34,238.29,14.6879]
[1731893684755,0.66533719,238.33,238.29,14.6879]
[1731893685770,0.66533719,238.33,238.29,10.4914]
[1731893685951,0.66533719,238.33,238.09,0.72973138]
[1731893685952,0.21916462,238.26,238.09,0.72973138]
[1731893686153,16.07028108,238.3,238.09,0.72973138]
[1731893686154,60.0663297,238.2,238.09,0.72973138]
[1731893686347,0.09367462,238.17,238.05,16.07028108]
[1731893686551,16.07028108,238.13,237.97,0.4705112]
[1731893686849,0.66533719,238.12,238.03,16.07028108]
[1731893687055,0.66533719,238.12,238.07,16.07028108]
[1731893687258,0.66533719,238.15,238.07,16.07028108]
[1731893687454,0.66533719,238.15,238.0,10.5042]
[1731893687659,0.66533719,238.15,238.09,16.07028108]
[1731893687857,0.66533719,238.15,238.11,16.07028108]
[1731893688056,16.07028108,238.21,238.13,16.07028108]
[1731893688258,0.66533719,238.2,238.13,16.07028108]
[1731893689661,0.66533719,238.21,238.15,16.07028108]
[1731893689856,11.2763,238.22,238.15,16.07028108]
[1731893690170,11.2763,238.22,238.03,4.2011]
[1731893690171,16.07028108,238.17,238.03,4.2011]
[1731893690370,41.03303719,238.21,238.03,4.2011]
[1731893690371,16.07028108,238.13,238.03,4.2011]
[1731893690664,0.66533719,238.12,238.03,26.57308108]
[1731893690869,0.66533719,238.12,238.05,16.07028108]
[1731893691073,16.07028108,238.17,238.07,16.07028108]
[1731893691269,0.66533719,238.16,238.07,16.07028108]
[1731893692458,0.66533719,238.16,237.99,25.311]
[1731893692459,0.66533719,238.16,238.09,16.07028108]
[1731893692649,20.9831,238.29,238.09,16.07028108]
[1731893692650,0.66533719,238.36,238.17,24.12153862]
[1731893692856,0.1,238.35,238.24,16.07028108]
[1731893693057,0.1,238.35,238.11,0.12549]
[1731893693058,16.07028108,238.29,238.11,0.12549]
[1731893693264,16.07028108,238.27,238.12,0.09367462]
[1731893693451,0.66533719,238.28,238.16,16.07028108]
[1731893693452,11.83173719,238.26,238.16,16.07028108]
[1731893693874,16.07028108,238.25,238.16,16.07028108]
[1731893694059,0.66533719,238.24,238.16,16.07028108]
[1731893694683,0.66533719,238.24,238.11,0.12549]
[1731893694684,16.07028108,238.21,238.11,4.1996]
[1731893694863,0.66533719,238.2,238.11,4.1996]
[1731893695068,16.07028108,238.17,238.07,10.5008]
[1731893695267,0.66533719,238.16,238.08,16.07028108]
[1731893696273,0.66533719,238.16,238.08,20.27028108]
[1731893696657,4.86423719,238.16,238.07,10.5008]
[1731893696857,16.07028108,238.15,238.07,10.5008]
[1731893697178,0.66533719,238.14,238.07,10.5008]
[1731893697970,16.07028108,238.13,238.07,10.5008]
[1731893698176,0.66533719,238.12,238.04,14.7033]
[1731893698474,0.66533719,238.12,238.05,16.07028108]
[1731893698679,0.66533719,238.14,238.05,16.07028108]
[1731893699071,0.66533719,238.14,238.09,16.07028108]